Cogmind - Beta 16 @@@ ROGUE MODE // 2026.01.01 @ 19:03:00 Player: telemetry Result: Self-destructed Performance ------------- Evolutions (2) 1000 Regions Visited (4) 800 Robots Destroyed (32) 160 Value Destroyed (1063) 1063 Prototype IDs (1) 20 Alien Tech Used (0) 0 Bonus (200) 200 TOTAL SCORE: 3243 Bonus ------- Entered Garrisons 200 Cogmind --------- Core Integrity 158/550 Matter 0/300 Energy 99/100 System Corruption 0% Temperature Cool (0) Movement Core (50) Location -8/Garrison Parts ------- > --- POWER (1) -------- (None) > --- PROPULSION (4) --- (None) > --- UTILITY (4) ------ (None) > --- WEAPON (2) ------- (None) > --- INVENTORY (5) ---- Ion Engine Huge Storage Unit Medium Armor Plating Mini Grenade Launcher Plasma Cutter Peak State ------------ > --- POWER ------------ Nuclear Core > --- PROPULSION ------- Light Treads VSS Leg Compact Wheel > --- UTILITY ---------- Large Storage Unit ECM Suite Hardlight Generator > --- WEAPON ----------- (None) > --- INVENTORY -------- Ion Engine Improved Heat Sink Huge Storage Unit High-capacity Matter Pod Plasma Cutter [Rating: 13] Favorites ----------- Power Ion Engine Engine Ion Engine Power Core Nuclear Core Propulsion Light Treads Treads Light Treads Leg VSS Leg Wheel Compact Wheel Utility Large Storage Unit Device Heat Sink Storage Large Storage Unit Protection Light Armor Plating Weapon Light EM Pulse Cannon Energy Gun Subdweller Laser Energy Cannon Light EM Pulse Cannon Ballistic Gun Heavy Assault Rifle Launcher Mini Grenade Launcher Special Weapon Plasma Cutter Build | -11 -10 -10 -8 -8 ------- Run | Yrd Mat Sub Mat Gar Slots Evolved 4 | . . . 4 . Power . | . . . . . Propulsion 2 | . . . 2 . Utility 2 | . . . 2 . Weapon . | . . . . . Parts Attached 35 | 6 10 9 9 1 Power 6 | 1 1 2 2 . Engine 5 | 1 1 2 1 . Core 1 | . . . 1 . Reactor . | . . . . . Propulsion 7 | 2 1 3 1 . Treads 5 | 2 1 2 . . Leg 1 | . . . 1 . Wheel 1 | . . 1 . . Hover . | . . . . . Flight . | . . . . . Utility 10 | 1 4 2 3 . Device 4 | . 1 1 2 . Storage 3 | 1 2 . . . Processor . | . . . . . Hackware . | . . . . . Protection 3 | . 1 1 1 . Artifact . | . . . . . Weapon 12 | 2 4 2 3 1 Energy Gun 2 | . . 1 1 . Energy Cannon 4 | . 4 . . . Ballistic Gun 3 | 2 . 1 . . Ballistic Cannon . | . . . . . Launcher 2 | . . . 2 . Special Weapon 1 | . . . . 1 Impact Weapon . | . . . . . Slashing Weapon . | . . . . . Piercing Weapon . | . . . . . Special Melee Weapon . | . . . . . Unidentified Prototypes 1 | . . . 1 . Corrupted Parts 2 | . . 2 . . System Corruption 3 | . . 3 . . Parts Lost 16 | . . 14 2 . Power 3 | . . 3 . . Propulsion 5 | . . 4 1 . Utility 3 | . . 2 1 . Weapon 5 | . . 5 . . Highest Loss Streak 6 | . . 6 1 . To Critical Strikes . | . . . . . Average Backups 7 | 1 8 9 4 5 Power . | . . . . 1 Propulsion 2 | . 3 3 . . Utility 3 | . 2 4 3 2 Weapon . | . 1 . . . Tool/Special . | . . . . . Unused Backups 4 | . 1 . . 3 Power . | . . . . . Propulsion 1 | . 1 . . . Utility 3 | . . . . 3 Weapon . | . . . . . Tool/Special . | . . . . . Average Slot Usage (%) 83 | . 97 92 36 2 Engine 11 | . 14 12 2 . Treads 23 | . 27 27 4 . Device 7 | . 7 9 9 . Storage 12 | . 14 14 4 . Protection 3 | . 4 3 3 . Energy Cannon 17 | . 25 14 . . Ballistic Gun 4 | . 2 8 . . Peak Build Rating 13 | 6 10 10 13 4 Average Rating 8 | 4 9 9 5 . On Entrance 4 | . 6 10 4 4 Avg Prop Armor Cover (%) 16 | . . 16 16 . Naked Turns 130 | . . . 23 107 Heaviest Build 36 | 13 36 36 35 1 Greatest Support 40 | 40 40 40 16 3 Greatest Overweight (x) 3 | 3 . 1 2 . Average Overweight (x) . | . . . . . Largest Inventory Capacity 15 | 8 15 15 15 5 Average Capacity 12 | 7 11 15 10 5 Most Carried 11 | 2 11 11 5 5 Average Carried 7 | 1 8 9 4 4 Final Capacity 15 | 8 15 15 5 5 Final Carried 11 | 2 11 6 5 5 Class Distribution -------------------- 100% | Mutant Dominant Class ---------------- Mutant | -10/Materials Mutant | -10/Subcaves Mutant | -8/Materials Mutant | -8/Garrison Resources | -11 -10 -10 -8 -8 ----------- Run | Yrd Mat Sub Mat Gar Matter Collected 720 | 95 330 295 . . Remotely . | . . . . . Salvage Created 1215 | . 769 347 99 . Parts 58 | . 29 23 6 . Haulers Intercepted 2 | . 2 . . . Recyclers Shooed . | . . . . . Parts Field Recycled . | . . . . . Retrieved Matter . | . . . . . Parts Self-Destructed 7 | . . 7 . . Prevented 5 | . . 5 . . Parts Restored . | . . . . . Kills | -11 -10 -10 -8 -8 ------- Run | Yrd Mat Sub Mat Gar Combat Hostiles Destroyed 26 | . 15 7 4 . Guns 3 | . . 3 . . Cannons 15 | . 12 3 . . AOE 4 | . . . 4 . Classes Destroyed 10 | . 6 2 2 . Worker 1 | . . . 1 . Tunneler 1 | . 1 . . . Hauler 2 | . 2 . . . Operator 1 | . 1 . . . Watcher 1 | . 1 . . . Swarmer 3 | . 3 . . . Grunt 13 | . 12 1 . . Sentry 3 | . . 1 2 . Hunter 2 | . . . 2 . Subdweller 5 | . . 5 . . Best Kill Streak 4 | . 3 2 4 . Combat Bots Only 3 | . 3 2 3 . Max Kills in Single Turn 2 | . 2 1 1 . Gunslinging . | . . . . . Exploded 1 | . . . 1 . Melee . | . . . . . Uniques/NPCs Destroyed . | . . . . . Combat | -11 -10 -10 -8 -8 -------- Run | Yrd Mat Sub Mat Gar Hostile Shots Fired 200 | . 43 78 70 9 Missed 64 | . 9 24 28 3 Hits 136 | . 34 54 42 6 Projectile 136 | . 34 54 42 6 AOE 5 | . . 5 . . Critical Strikes 1 | . . 1 . . Damage Taken 2417 | . 410 1324 620 63 Core 539 | . 16 131 329 63 Absorbed by Shields 24 | . . . 24 . Regen/Repaired (Parts) 88 | . 88 . . . Core Remaining (%) 70 | 100 . 41 . . Volleys Fired 92 | . 37 38 17 . Largest 2 | . 2 2 2 . Hottest 112 | . 112 112 60 . Shots Fired 151 | . 72 60 19 . Gun 22 | . . 22 . . Cannon 110 | . 72 38 . . Launcher 19 | . . . 19 . Special . | . . . . . Kinetic 15 | . . 15 . . Thermal 7 | . . 7 . . Explosive 19 | . . . 19 . Electromagnetic 110 | . 72 38 . . Robot Hit Streak 21 | . 15 21 4 . Robot Miss Streak 2 | . 2 2 1 . Penetration Max . | . . . . . Secondary Targets . | . . . . . Shots Hit Robots 93 | . 50 39 4 . Core Hits 42 | . 16 13 13 . Critical Kills . | . . . . . Critical Parts Destroyed . | . . . . . Critical Strikes 1 | . 1 . . . Corrupt 1 | . 1 . . . Melee Attacks . | . . . . . Impact . | . . . . . Slashing . | . . . . . Piercing . | . . . . . Sneak Attacks . | . . . . . Combat Hostiles . | . . . . . Follow-up Attacks . | . . . . . Damage Inflicted 2649 | . 1403 781 459 6 Guns 248 | . . 248 . . Cannons 1736 | . 1246 490 . . Explosions 659 | . 157 43 459 . Melee . | . . . . . Ramming 6 | . . . . 6 Kinetic 103 | . . 103 . . Thermal 345 | . 157 188 . . Explosive 459 | . . . 459 . Electromagnetic 1736 | . 1246 490 . . Impact . | . . . . . Slashing . | . . . . . Piercing . | . . . . . Highest Corruption 3 | . . 3 . . Average Corruption 2 | . . 2 . . Corruption Purged . | . . . . . Corruption Blocked . | . . . . . Effects 14 | . . 14 . . Message Errors 3 | . . 3 . . Matter Fused 3 | . . 3 . . Heat Flow Errors 2 | . . 2 . . Energy Discharges 2 | . . 2 . . Data Loss (minor) 1 | . . 1 . . Misfires 2 | . . 2 . . Weapon Failures 1 | . . 1 . . Overload Shots . | . . . . . Overflow Damage 45 | . 45 . . . Projectiles 45 | . 45 . . . Explosions . | . . . . . Melee . | . . . . . Knockbacks . | . . . . . Impact . | . . . . . Kinetic . | . . . . . Secondary . | . . . . . Self-Inflicted Damage 177 | . 47 24 100 6 Shots 7 | . 1 1 5 . Rammed . | . . . . . Targets Rammed . | . . . . . Kicked . | . . . . . Crushed . | . . . . . Highest Temperature 270 | . 270 235 . . Average Temperature 82 | . 85 65 . . Received Heat Transfer 423 | . 138 201 75 9 Effects 3 | . 3 . . . Energy Bleed 1 | . 1 . . . Interference 2 | . 2 . . . Siege Activations . | . . . . . Martial Activations . | . . . . . Shielding Activations . | . . . . . Robots Disrupted . | . . . . . Combat Hostiles . | . . . . . Robots Corrupted 5 | . 4 1 . . Combat Hostiles 4 | . 3 1 . . Parts Fried 17 | . 13 4 . . Impact Corruptions . | . . . . . Robots Melted . | . . . . . Combat Hostiles . | . . . . . Parts Melted . | . . . . . Heat Transferred 425 | . 200 225 . . Parts Sabotaged . | . . . . . Parts Stolen . | . . . . . Parts Stripped . | . . . . . Power Chain Reactions 4 | . 3 1 . . Alert | -11 -10 -10 -8 -8 ------- Run | Yrd Mat Sub Mat Gar Maximum Alert Level 1 | . . . 1 1 Low Security (%) 94 | 100 100 . 86 51 Level 1 5 | . . . 13 48 Level 2 . | . . . . . Level 3 . | . . . . . Level 4 . | . . . . . Level 5 . | . . . . . High Security . | . . . . . Max Security . | . . . . . Peak Influence 290 | . 152 . 261 290 Initial 156 | . . . . 156 Average 63 | . 57 . 45 195 Influence Increases 930 | . 455 50 291 134 Destroy 0b10 Robot/C 420 | . 300 40 80 . Destroy 0b10 Robot/NC 30 | . 25 . 5 . Destroy Leader 126 | . 76 10 40 . Successful Hack 25 | . 11 . . 14 Disable Machine 75 | . 30 . 45 . Destroy Structure 119 | . 13 . 106 . Lose Combat Pursuer 135 | . . . 15 120 Influence Decreases 640 | . 343 162 50 85 Entered New Map 140 | . . 55 . 85 Time Decay 463 | . 343 70 50 . Lost Part 37 | . . 37 . . Squads Dispatched 4 | . 3 . 1 . Investigation 2 | . 2 . . . Extermination . | . . . . . Reinforcement 1 | . 1 . . . Assault . | . . . . . Garrison 1 | . . . 1 . Intercept . | . . . . . Searches Triggered . | . . . . . Construction Impeded . | . . . . . Haulers Reinforced . | . . . . . Active Scanning Responses . | . . . . . Cargo Convoy Interrupts . | . . . . . Stealth | -11 -10 -10 -8 -8 --------- Run | Yrd Mat Sub Mat Gar Distress Signals 1 | . . . 1 . Communications Jammed . | . . . . . Distress Signals . | . . . . . Times Spotted 52 | . 21 12 8 11 Peak Tracking Total 8 | . 4 3 4 8 Tactical Retreats 3 | . . . 1 2 Traps | -11 -10 -10 -8 -8 ------- Run | Yrd Mat Sub Mat Gar Traps Triggered 3 | . 2 . . 1 Indirectly . | . . . . . Trap Hack Attempts . | . . . . . Triggered . | . . . . . Disarmed . | . . . . . Reprogrammed . | . . . . . Reused . | . . . . . Traps Extracted . | . . . . . Installed . | . . . . . Triggered . | . . . . . Machines | -11 -10 -10 -8 -8 ---------- Run | Yrd Mat Sub Mat Gar Machines Disabled 5 | . 2 . 3 . Max in Single Turn 1 | . 1 . 1 . Machines Repaired . | . . . . . Machines Dismantled . | . . . . . Machines Sabotaged . | . . . . . Overloaded Fab Kills . | . . . . . Hacking | -11 -10 -10 -8 -8 --------- Run | Yrd Mat Sub Mat Gar Machines Accessed 8 | . 5 1 1 1 Terminals 5 | . 4 . . 1 Fabricators . | . . . . . Repair Stations 1 | . 1 . . . Recycling Units . | . . . . . Scanalyzers . | . . . . . Garrison Access 1 | . . . 1 . Total Hacks 19 | . 14 2 2 1 Successful 12 | . 8 2 1 1 Failed 7 | . 6 . 1 . Catastrophic . | . . . . . Database Lockouts . | . . . . . Manual 11 | . 11 . . . Terminals 13 | . 12 . . 1 Fabricators . | . . . . . Repair Stations 2 | . 2 . . . Recycling Units . | . . . . . Scanalyzers . | . . . . . Garrison Access 2 | . . . 2 . Terminal Hacks 7 | . 4 2 . 1 Record 2 | . . 2 . . Robot Analysis 2 | . 2 . . . Emergency Access Points 1 | . . . . 1 Locate Traps 1 | . 1 . . . Hauler Manifests 1 | . 1 . . . Fabricator Hacks . | . . . . . Repair Station Hacks 2 | . 2 . . . Scan Component 1 | . 1 . . . Repair 1 | . 1 . . . Recycling Unit Hacks . | . . . . . Scanalyzer . | . . . . . Garrison Access Hacks 1 | . . . 1 . Unlock Access 1 | . . . 1 . Unauthorized Hacks 2 | . 2 . . . Terminals 2 | . 2 . . . Botnet 2 | . 2 . . . Fabricators . | . . . . . Repair Stations . | . . . . . Recycling Units . | . . . . . Scanalyzers . | . . . . . Garrison Access . | . . . . . Data Cores Recovered . | . . . . . Used . | . . . . . Hacking Detections 6 | . 5 . 1 . Full Trace Events 3 | . 3 . . . Feedback Events . | . . . . . Feedback Blocked . | . . . . . Robot Schematics Acquired . | . . . . . Robots Built . | . . . . . Authchips . | . . . . . Time . | . . . . . Total Robot Build Rating . | . . . . . Part Schematics Acquired . | . . . . . Parts Built . | . . . . . Authchips . | . . . . . Time . | . . . . . Total Part Build Rating . | . . . . . Part Studies Acquired . | . . . . . Parts Repaired 1 | . 1 . . . Time 26 | . 26 . . . Parts Recycled . | . . . . . Recycled Matter . | . . . . . Retrieved Matter . | . . . . . Retrieved Components . | . . . . . Parts Scanalyzed . | . . . . . Part Schematics Acquired . | . . . . . Parts Damaged . | . . . . . Bothacking | -11 -10 -10 -8 -8 ------------ Run | Yrd Mat Sub Mat Gar Used RIF Installer . | . . . . . Robots Hacked . | . . . . . Non-combat . | . . . . . Combat . | . . . . . Robot Hacks Applied . | . . . . . Relay Couplers Released . | . . . . . Fabnet Peak Effective % . | . . . . . Robots Rewired . | . . . . . Allies Hacked . | . . . . . Hacks Repelled . | . . . . . Allies | -11 -10 -10 -8 -8 -------- Run | Yrd Mat Sub Mat Gar Total Allies . | . . . . . Largest Group . | . . . . . Highest-Rated Group . | . . . . . Highest-Rated Ally . | . . . . . Total Orders . | . . . . . Ally Attacks . | . . . . . Total Damage . | . . . . . Kills . | . . . . . Allies Corrupted . | . . . . . Allies Melted . | . . . . . Intel | -11 -10 -10 -8 -8 ------- Run | Yrd Mat Sub Mat Gar Active Infowar (turns) 678 | . . 528 150 . Sensors 528 | . . 528 . . ECM 150 | . . . 150 . Robot Analysis Total 2 | . 2 . . . Derelict Logs Recovered 1 | . . 1 . . Drone Launches . | . . . . . Drone Recoveries . | . . . . . Exploration | -11 -10 -10 -8 -8 ------------- Run | Yrd Mat Sub Mat Gar Turns Passed 2487 | 65 1211 805 285 121 Spaces Moved 1508 | 35 631 419 225 198 Core 318 | 12 . . 108 198 Treads 1052 | 23 631 398 . . Legs . | . . . . . Wheels 138 | . . 21 117 . Hover . | . . . . . Flight . | . . . . . Fastest Speed 50 | 50 160 115 50 50 Average Speed 135 | 156 160 158 95 50 Slowest Speed 240 | 200 160 240 150 50 Overloaded Moves . | . . . . . Propulsion Burnouts . | . . . . . Robots Hopped . | . . . . . Potential Cave-ins . | . . . . . Cave-ins Triggered . | . . . . . Exploration Rate (%) 36 | 4 92 24 26 37 Regions Visited 4 Branch Regions 1 Pre-discovered Areas . | . . . . . Known Exits Taken 1 | . . . 1 . Unknown Exits Taken 3 | 1 1 1 . . Scrap Searched . | . . . . . Spaces Dug . | . . . . . Terrain Destroyed 164 | . 11 . 153 . Melee . | . . . . . Projectile . | . . . . . AOE 164 | . 11 . 153 . Terrain Rammed 1 | . . . . 1 Walls Destroyed . | . . . . . Machines Disabled . | . . . . . Actions | -11 -10 -10 -8 -8 --------- Run | Yrd Mat Sub Mat Gar Total 1797 | 42 761 498 274 222 Wait 105 | . 55 27 23 . Move 1504 | 34 630 418 224 198 Hop . | . . . . . Pick Up 21 | 2 15 2 . 2 Fast Attach 20 | 6 4 5 5 . Attach 11 | . 2 6 2 1 Detach 2 | . 1 . . 1 Swap 10 | . 7 1 2 . Drop 16 | . 10 1 1 4 Fire 92 | . 37 38 17 . Melee . | . . . . . Ram 1 | . . . . 1 Kick . | . . . . . Crush . | . . . . . Escape Stasis 15 | . . . . 15 Rewire . | . . . . . Trap . | . . . . . Miscellaneous . | . . . . . Route ------- -11/Scrapyard -10/Materials (discovered 4 exits: [*Mat x2] / [*Min] / *Sub) -10/Subcaves (discovered 3 exits: *Mat x2 / Rec) -8/Materials -8/Garrison (discovered 1 exit: [*Mat]) History --------- Turn | Location | Event 21 | -11/Scrapyard | Discovered new exit (range 15) 66 | -11/Scrapyard | Entered Materials 67 | -10/Materials | Met a group of wandering Federalists 102 | -10/Materials | Discovered new exit (range 5) 302 | -10/Materials | Build established: Mutant 431 | -10/Materials | Discovered new exit (range 12) 478 | -10/Materials | Discovered new exit (range 16) 927 | -10/Materials | Discovered new exit (range 14) 997 | -10/Materials | Repaired Lgt. Treads 1277 | -10/Materials | Entered Subcaves 1278 | -10/Subcaves | Continued accompanying wandering Federalists (5) 1364 | -10/Subcaves | Lost 5 allies 1420 | -10/Subcaves | Ambushed by Subdweller buried in earth 1458 | -10/Subcaves | Lost 4 parts (1p1n1u1w) 1529 | -10/Subcaves | Discovered new exit (range 10) 1556 | -10/Subcaves | Discovered new exit (range 9) 1565 | -10/Subcaves | Identified exit to Recycling 1586 | -10/Subcaves | Visited Clippyterm 1591 | -10/Subcaves | Learned Factory emergency access door positions 1961 | -10/Subcaves | A Subdweller sparked back to life 1961 | -10/Subcaves | A Subdweller sparked back to life 1961 | -10/Subcaves | A Subdweller sparked back to life 2002 | -10/Subcaves | Lost 3 parts (1n2w) 2031 | -10/Subcaves | Core integrity fell below 50% 2082 | -10/Subcaves | Entered Materials 2082 | -8/Materials | Evolved 4 slots: Propulsion x2, Utility x2 2086 | -8/Materials | Lost 6 parts (2p2n1u1w) 2232 | -8/Materials | Released all parts (6) 2334 | -8/Materials | Core integrity fell below 50% 2338 | -8/Materials | Garrison activated, responded to threat 2365 | -8/Materials | Identified exit to Garrison 2367 | -8/Materials | Entered Garrison 2369 | -8/Garrison | Triggered checkpoint 2405 | -8/Garrison | Triggered checkpoint 2441 | -8/Garrison | Triggered checkpoint 2456 | -8/Garrison | Discovered new exit (range 10) 2488 | -8/Garrison | Self-destructed Last Messages --------------- 02465_ Field strength at 94. 02466_ Field strength at 88. 02467_ Field strength at 82. 02468_ Field strength at 76. 02469_ Field strength at 70. 02470_ Field strength at 64. 02471_ Field strength at 58. 02472_ Field strength at 52. 02473_ Field strength at 46. 02474_ Field strength at 40. 02475_ Field strength at 34. 02476_ Field strength at 28. 02477_ Field strength at 22. 02478_ Field strength at 16. 02479_ Field strength at 10. 02480_ Field strength at 4. 02481_ Stasis field depleted. 02481_ C-45 Heavy ARC bursts open, deploying its payload. 02481_ S-10 Pest unfolds itself. Map ----- +----------------------------------------------------+ | ?????????????????????????????????+? | | ??????????????????????????????????? | | ??????????????????????????????????? | | ??????????????????????????????????? | | ??????????????????????????????????? | | ??????????????????????????????????? | | ??????????????????????######+####+# | | ??????????????????????# | | ??????????????????????# | | ??????????????????????# ########## | | ??????????????????????# #????????? | | ??????????????????????# #????????? | | ??????????????????????# #????????? | | ??????????????????????# #????????? | | ??????????????????????# #????????? | | ??????????????????????# #????????? | | ??????????????????????# #????????? | | ??????????????????????# ###??????? | | ????????#+##??????????# #??????? | | ????????# #??????????# < #??????? | | ????????# #??????????+ #??????? | | ??????### #????????+## ###??????? | | ??????#"# ###?????? ?# #????????? | | ??????#" #???### ?# #????????? | | ??????#" Y #???# ??+ #????????? | | ??????#" @ #???# #??# #????????? | | ??????#"# ###??##/##?# #????????? | | ????????# #????#"%"#?# #????????? | | ????????# s###### " ### #????????? | | ????????# +????????? | | ????????# ^ +????????? | | ????????################+#????????? | | ??????????????????????????????????? | | ??????????????????????????????????? | | ??????????????????????????????????? | | ??????????????????????????????????? | | ??????????????????????????????????? | | ??????????????????????????????????? | | ??????????????????????????????????? | | ??????????????????????????????????? | | ??????????????????????????????????? | | ??????????????????????????????????? | | | | | | | | | | | | | | | | | +----------------------------------------------------+ Best States ------------- Heat Dissipation 35 Energy Generation 15 Energy Capacity 250 Matter Stores 300 Matter Capacity 300 Sight Range 16 Robot Scan Range 14 Terrain Scan Density 10 ECM Strength 1 Armor Coverage 225 Evasion (%) 50 Recoil Reduction 2 Item Schematics ----------------- None Robot Schematics ------------------ None Fabricated ------------ Nothing Repaired ---------- Lgt. Treads | 37% | -10/Materials Studied --------- None Alien Tech Used ----------------- None Achievements -------------- Do Not Disturb Challenges ------------ None Game ------ Seed CloakHardlightRifle Manual? 0 Play Time 00:26:27 Cumulative 34.9 hours Start 2026.01.01 @ 18:37:53 End 2026.01.01 @ 19:03:00 Sessions 1 Manual Loads 0 Difficulty Rogue Special Mode None Game No. 31 Rogue 31 Adventurer 0 Explorer 0 Win Type - Total 0 Types 0/0/0/0/0/0/0/0/0/0 Lore% 31 Gallery% 27 Achievement% 26 Wizard Run 0 Options --------- Layout 1 ASCII 0 Keyboard 0 Movement Numpad Keybinds 0 Fullscreen 1 Font 24/Smallcaps Map View 50x40 Zoom Use 0% Tactical HUD 1 Map Filters NONE Filters NONE Steam 1 RUN: c8bcc16f-2d7a-4923-b78e-733e741c28ff